[Event "FIDE WSTC Open 65 2025"]
[Site "Prague"]
[Date "2025.02.17"]
[Round "1.34"]
[White "Schmidt, Bodo"]
[Black "Dovzhenko, Viktor"]
[Result "0-1"]
[Annotator "RC"]
[ECO "A41"]
[WhiteElo "2256"]
[BlackElo "2058"]
[PlyCount "106"]
[EventDate "2025.02.17"]
[EventType "team-tourn"]
[EventCountry "CZE"]
[SourceTitle "playchess.com"]
[Source "ChessBase"]
[SourceQuality "1"]
[TimeControl "40/5400+30:1800+30"]

1. d4 {[%emt 0:00:30]} d6 {[%emt 0:00:30]} 2. Nf3 {[%emt 0:00:30]} Bg4 {[%emt 0:00:25]} 3. c4 {[%emt 0:00:20]} c6 {[%emt 0:00:57]} 4. Nc3 {[%emt 0:00:49]} Nd7 {[%emt 0:00:39]} 5. e4 {[%emt 0:03:40]} e5 {[%emt 0:01:28]} 6. Be3 {[%emt 0:00:28]} Be7 {[%emt 0:01:51]} 7. Be2 {[%emt 0:00:36]} Bxf3 {[%emt 0:03:06]} 8. Bxf3 {[%emt 0:00:15]} Bg5 {[%emt 0:00:08]} 9. Qd2 {[%emt 0:05:38]} Bxe3 {[%emt 0:07:42]} 10. Qxe3 {[%emt 0:00:25]} Ne7 {[%emt 0:01:08]} 11. O-O {[%emt 0:02:05]} O-O {[%emt 0:04:10]} 12. Bg4 {[%emt 0:06:58]} Nf6 {[%emt 0:09:24]} 13. Bh3 {[%emt 0:01:57]} a6 {[%emt 0:04:54]} 14. dxe5 {[%emt 0:15:38]} dxe5 {[%emt 0:00:20]} 15. Rfd1 {[%emt 0:00:02]} Qc7 {[%emt 0:01:33]} 16. c5 {[%emt 0:03:03]} Rad8 {[%emt 0:04:15]} 17. b4 {[%emt 0:01:24]} a5 {[%emt 0:12:23]} 18. a3 {[%emt 0:02:34]} axb4 {[%emt 0:00:37]} 19. axb4 {[%emt 0:00:02]} Rd4 {[%emt 0:00:20]} 20. Rxd4 {[%emt 0:01:33]} exd4 {[%emt 0:00:01]} 21. Qxd4 {[%emt 0:00:01]} Rd8 {[%emt 0:00:31]} 22. Qe3 {[%emt 0:02:18]} Qe5 {[%emt 0:00:22]} 23. f4 {[%emt 0:09:29]} Nfd5 {[%emt 0:05:11]} 24. Rd1 {[%emt 0:06:05]} Re8 {[%emt 0:14:03]} 25. fxe5 {[%emt 0:01:51]} Nxe3 {[%emt 0:00:03]} 26. Rd7 {[%emt 0:00:13]} g5 {[%emt 0:00:41]} 27. Kf2 {[%emt 0:01:20]} Nc4 {[%emt 0:06:00]} 28. e6 {[%emt 0:00:28]} Ne5 {[%emt 0:00:37]} 29. Rxb7 {[%emt 0:21:43]} g4 {[%emt 0:00:12]} 30. Nd5 {[%emt 0:00:13]} cxd5 {[%emt 0:01:45]} 31. exf7+ {[%emt 0:00:07]} Kxf7 {[%emt 0:04:59]} 32. exd5 {[%emt 0:00:12]} gxh3 {[%emt 0:01:09]} 33. d6 {[%emt 0:00:11]} Ke6 {[%emt 0:00:13]} 34. dxe7 {[%emt 0:01:32]} Rxe7 {[%emt 0:02:08]} 35. Rb6+ {[%emt 0:00:27]} Kd5 {[%emt 0:00:21]} 36. gxh3 {[%emt 0:00:15]} Kc4 {[%emt 0:00:47]} 37. c6 {[%emt 0:00:41]} Nd3+ {[%emt 0:01:08]} 38. Kg3 {[%emt 0:00:28]} Nxb4 {[%emt 0:02:44]} 39. Rb7 {[%emt 0:00:12]} Nxc6 {[%emt 0:00:15]} 40. Rxe7 Nxe7 {[%emt 0:00:01]} 41. Kf4 {[%emt 0:31:24]} Kd5 {[%emt 0:30:12]} 42. Kg5 {[%emt 0:00:09]} Ng8 {[%emt 0:00:16]} 43. h4 {[%emt 0:03:49]} Ke6 {[%emt 0:00:16]} 44. h5 {[%emt 0:00:08]} Ke5 {[%emt 0:00:31]} 45. h3 {[%emt 0:03:25]} Ke6 {[%emt 0:00:17]} 46. Kf4 {[%emt 0:00:29]} h6 {[%emt 0:00:36]} 47. Kg4 {[%emt 0:00:39]} Ke5 {[%emt 0:00:19]} 48. Kh4 {[%emt 0:00:20]} Nf6 {[%emt 0:00:15]} 49. Kg3 {[%emt 0:00:10]} Nxh5+ {[%emt 0:00:27]} 50. Kg4 {[%emt 0:01:47]} Nf6+ {[%emt 0:00:18]} 51. Kh4 {[%emt 0:00:46]} Kf5 {[%emt 0:00:15]} 52. Kg3 {[%emt 0:05:06]} Kg5 {[%emt 0:00:16]} 53. h4+ {[%emt 0:00:08]} Kf5 {[%emt 0:00:49]} 0-1

[Event "FIDE WSTC Open 65 2025"]
[Site "Prague"]
[Date "2025.02.17"]
[Round "1.34"]
[White "Schmidt, Bodo"]
[Black "Karnaukh, Anatolij"]
[Result "*"]
[Annotator "ChessBase"]
[ECO "A41"]
[WhiteElo "2256"]
[BlackElo "1983"]
[PlyCount "47"]
[EventDate "2025.02.17"]
[EventType "team-tourn"]
[EventCountry "CZE"]
[SourceTitle "playchess.com"]
[Source "ChessBase"]
[SourceQuality "1"]
[TimeControl "40/5400+30:1800+30"]

1. d4 {[%emt 0:00:30]} d6 {[%emt 0:00:30]} 2. Nf3 {[%emt 0:00:30]} Bg4 {[%emt 0:00:25]} 3. c4 {[%emt 0:00:20]} c6 {[%emt 0:00:57]} 4. Nc3 {[%emt 0:00:49]} Nd7 {[%emt 0:00:39]} 5. e4 {[%emt 0:03:40]} e5 {[%emt 0:01:28]} 6. Be3 {[%emt 0:00:28]} Be7 {[%emt 0:01:51]} 7. Be2 {[%emt 0:00:36]} Bxf3 {[%emt 0:03:06]} 8. Bxf3 {[%emt 0:00:15]} Bg5 {[%emt 0:00:08]} 9. Qd2 {[%emt 0:05:38]} Bxe3 {[%emt 0:07:42]} 10. Qxe3 {[%emt 0:00:25]} Ne7 {[%emt 0:01:08]} 11. O-O {[%emt 0:02:05]} O-O {[%emt 0:04:10]} 12. Bg4 {[%emt 0:06:58]} Nf6 {[%emt 0:09:24]} 13. Bh3 {[%emt 0:01:57]} a6 {[%emt 0:04:54]} 14. dxe5 {[%emt 0:15:38]} dxe5 {[%emt 0:00:20]} 15. Rfd1 {[%emt 0:00:02]} Qc7 {[%emt 0:01:33]} 16. c5 {[%emt 0:03:03]} Rad8 {[%emt 0:04:15]} 17. b4 {[%emt 0:01:24]} a5 {[%emt 0:12:23]} 18. a3 {[%emt 0:02:34]} axb4 {[%emt 0:00:37]} 19. axb4 {[%emt 0:00:02]} Rd4 {[%emt 0:00:20]} 20. Rxd4 {[%emt 0:01:33]} exd4 {[%emt 0:00:01]} 21. Qxd4 {[%emt 0:00:01]} Rd8 {[%emt 0:00:31]} 22. Qe3 {[%emt 0:02:18]} Qe5 {[%emt 0:00:22]} 23. f4 {[%emt 0:09:29]} Nfd5 {[%emt 0:05:11]} 24. Rd1 {[%emt 0:06:05]} *

[Event "FIDE WSTC Open 65 2025"]
[Site "Prague"]
[Date "2025.02.17"]
[Round "1.36"]
[White "Okrajek, Alexander"]
[Black "Malienko, Alexander"]
[Result "1-0"]
[Annotator "ChessBase"]
[ECO "A54"]
[WhiteElo "2200"]
[BlackElo "1911"]
[PlyCount "139"]
[EventDate "2025.02.17"]
[EventType "team-tourn"]
[EventCountry "CZE"]
[SourceTitle "playchess.com"]
[Source "ChessBase"]
[SourceQuality "1"]
[TimeControl "40/5400+30:1800+30"]

1. c4 {[%emt 0:00:16]} e5 {[%emt 0:00:10]} 2. g3 {[%emt 0:00:21]} Nf6 {[%emt 0:00:40]} 3. Bg2 {[%emt 0:00:37]} Nc6 {[%emt 0:01:06]} 4. Nc3 {[%emt 0:04:12]} Be7 {[%emt 0:01:46]} 5. Nf3 {[%emt 0:03:30]} O-O {[%emt 0:10:52]} 6. d4 {[%emt 0:03:25]} exd4 {[%emt 0:03:03]} 7. Nxd4 {[%emt 0:01:18]} Nxd4 {[%emt 0:03:40]} 8. Qxd4 {[%emt 0:00:13]} d6 {[%emt 0:00:08]} 9. O-O {[%emt 0:00:44]} c6 {[%emt 0:02:34]} 10. b3 {[%emt 0:09:06]} Ne8 {[%emt 0:02:55]} 11. Bb2 {[%emt 0:02:44]} Qa5 {[%emt 0:06:39]} 12. Rad1 {[%emt 0:08:11]} Qh5 {[%emt 0:07:02]} 13. e4 {[%emt 0:07:51]} Bh3 {[%emt 0:02:00]} 14. Bxh3 {[%emt 0:03:58]} Qxh3 {[%emt 0:02:20]} 15. Ne2 {[%emt 0:02:48]} Bf6 {[%emt 0:03:11]} 16. Qd2 {[%emt 0:00:14]} Bxb2 {[%emt 0:01:32]} 17. Qxb2 {[%emt 0:00:09]} Qe6 {[%emt 0:06:37]} 18. f3 {[%emt 0:03:19]} f5 {[%emt 0:17:29]} 19. Nf4 {[%emt 0:07:04]} Qf7 {[%emt 0:05:56]} 20. Qd4 {[%emt 0:07:38]} g5 {[%emt 0:03:37]} 21. Ng2 {[%emt 0:07:00]} a6 {[%emt 0:03:13]} 22. Ne3 {[%emt 0:07:01]} Ng7 {[%emt 0:05:06]} 23. Qxd6 {[%emt 0:03:34]} Rae8 {[%emt 0:00:32]} 24. Nxf5 {[%emt 0:04:13]} Nxf5 {[%emt 0:00:07]} 25. exf5 {[%emt 0:00:08]} Qxf5 {[%emt 0:00:41]} 26. Rd2 {[%emt 0:03:50]} Re6 {[%emt 0:04:07]} 27. Qd4 {[%emt 0:01:32]} Rfe8 {[%emt 0:00:28]} 28. Kg2 {[%emt 0:01:22]} Rh6 {[%emt 0:01:23]} 29. g4 {[%emt 0:03:16]} Qa5 {[%emt 0:01:07]} 30. Rff2 {[%emt 0:00:27]} Qc7 {[%emt 0:00:35]} 31. h3 {[%emt 0:00:17]} Rhe6 {[%emt 0:01:03]} 32. Qd7 {[%emt 0:01:31]} Qe5 {[%emt 0:00:26]} 33. Qd4 {[%emt 0:01:00]} Qe1 {[%emt 0:00:43]} 34. Qb2 {[%emt 0:00:31]} Re3 {[%emt 0:00:53]} 35. Rd7 {[%emt 0:00:39]} R3e7 {[%emt 0:00:31]} 36. Qd2 {[%emt 0:01:16]} Qe5 {[%emt 0:01:34]} 37. Qd3 {[%emt 0:01:01]} Qe1 {[%emt 0:00:38]} 38. Qf5 {[%emt 0:00:45]} Qe3 {[%emt 0:01:12]} 39. Rxe7 {[%emt 0:01:33]} Rxe7 {[%emt 0:00:25]} 40. Qf6 {[%emt 0:00:43]} Rf7 {[%emt 0:00:38]} 41. Qd8+ {[%emt 0:31:07]} Kg7 {[%emt 0:30:29]} 42. h4 {[%emt 0:00:00]} h6 {[%emt 0:00:00]} 43. h5 {[%emt 0:00:00]} Qe6 {[%emt 0:00:00]} 44. Qd4+ {[%emt 0:00:00]} Kg8 {[%emt 0:00:00]} 45. Rd2 {[%emt 0:00:00]} Re7 {[%emt 0:00:00]} 46. Qd6 {[%emt 0:00:00]} Qxd6 {[%emt 0:00:00]} 47. Rxd6 {[%emt 0:00:00]} Re2+ {[%emt 0:00:00]} 48. Kg3 {[%emt 0:00:00]} Rxa2 {[%emt 0:00:00]} 49. Rd8+ {[%emt 0:00:00]} Kg7 {[%emt 0:00:00]} 50. Rd7+ {[%emt 0:00:00]} Kg8 {[%emt 0:00:00]} 51. Rxb7 {[%emt 0:00:00]} c5 {[%emt 0:00:00]} 52. Rc7 {[%emt 0:00:00]} Ra5 {[%emt 0:00:00]} 53. Kf2 {[%emt 0:00:00]} Ra2+ {[%emt 0:00:00]} 54. Ke3 {[%emt 0:00:00]} Rb2 {[%emt 0:00:00]} 55. Rb7 {[%emt 0:00:00]} Rc2 {[%emt 0:00:00]} 56. Ke4 {[%emt 0:00:00]} Rd2 {[%emt 0:00:00]} 57. Rb6 {[%emt 0:00:00]} Rd4+ {[%emt 0:03:18]} 58. Ke3 {[%emt 0:00:00]} Kh7 {[%emt 0:00:58]} 59. Rxa6 {[%emt 0:00:00]} Rd7 {[%emt 0:00:15]} 60. Rb6 {[%emt 0:00:00]} Re7+ {[%emt 0:00:42]} 61. Kd3 {[%emt 0:00:00]} Rd7+ {[%emt 0:01:08]} 62. Ke4 {[%emt 0:00:00]} Rd4+ {[%emt 0:00:44]} 63. Ke5 {[%emt 0:00:00]} Rf4 {[%emt 0:00:49]} 64. Rf6 {[%emt 0:00:00]} Rd4 {[%emt 0:00:58]} 65. Rf7+ {[%emt 0:00:00]} Kg8 {[%emt 0:00:25]} 66. Rc7 {[%emt 0:00:00]} Rf4 {[%emt 0:00:50]} 67. Rxc5 {[%emt 0:00:36]} Rxf3 {[%emt 0:00:06]} 68. b4 {[%emt 0:00:15]} Rf4 {[%emt 0:00:46]} 69. b5 {[%emt 0:00:32]} Rxg4 {[%emt 0:00:38]} 70. b6 {[%emt 0:00:08]} 1-0

[Event "FIDE WSTC Open 65 2025"]
[Site "Prague"]
[Date "2025.02.17"]
[Round "1.37"]
[White "Uddenfeldt, Dan"]
[Black "Vilerte, Tamara"]
[Result "1-0"]
[Annotator "ChessBase"]
[ECO "E08"]
[WhiteElo "2311"]
[BlackElo "1972"]
[PlyCount "87"]
[EventDate "2025.02.17"]
[EventType "team-tourn"]
[EventCountry "CZE"]
[SourceTitle "playchess.com"]
[Source "ChessBase"]
[SourceQuality "1"]
[TimeControl "40/5400+30:1800+30"]

1. Nf3 {[%emt 0:00:37]} e6 {[%emt 0:01:35]} 2. c4 {[%emt 0:00:56]} Nf6 {[%emt 0:02:43]} 3. g3 {[%emt 0:01:50]} Be7 {[%emt 0:10:43]} 4. d4 {[%emt 0:02:05]} d5 {[%emt 0:01:22]} 5. Bg2 {[%emt 0:01:48]} O-O {[%emt 0:05:12]} 6. Qc2 {[%emt 0:02:15]} Ne4 {[%emt 0:13:02]} 7. O-O {[%emt 0:03:09]} Nd7 {[%emt 0:03:38]} 8. Bf4 {[%emt 0:07:12]} c6 {[%emt 0:02:37]} 9. Nc3 {[%emt 0:03:41]} Nxc3 {[%emt 0:05:46]} 10. Qxc3 {[%emt 0:01:31]} dxc4 {[%emt 0:10:02]} 11. Qxc4 {[%emt 0:00:00]} Nb6 {[%emt 0:00:56]} 12. Qc2 {[%emt 0:03:12]} Nd5 {[%emt 0:04:14]} 13. Bd2 {[%emt 0:01:38]} Qb6 {[%emt 0:04:23]} 14. e4 {[%emt 0:01:22]} Nc7 {[%emt 0:02:40]} 15. Be3 {[%emt 0:01:10]} Qa5 {[%emt 0:01:39]} 16. a3 {[%emt 0:01:26]} Qh5 {[%emt 0:06:04]} 17. Bf4 {[%emt 0:12:21]} Qa5 {[%emt 0:02:14]} 18. b4 {[%emt 0:08:06]} Qb6 {[%emt 0:00:57]} 19. Ne5 {[%emt 0:17:46]} Ne8 {[%emt 0:01:49]} 20. Rfd1 {[%emt 0:01:47]} Nf6 {[%emt 0:01:35]} 21. Rab1 {[%emt 0:02:52]} a6 {[%emt 0:01:39]} 22. a4 {[%emt 0:01:18]} Qd8 {[%emt 0:00:33]} 23. a5 {[%emt 0:02:10]} Bd6 {[%emt 0:01:06]} 24. Nd3 {[%emt 0:10:39]} Bxf4 {[%emt 0:00:52]} 25. Nxf4 {[%emt 0:00:07]} Qe7 {[%emt 0:00:23]} 26. Nd3 {[%emt 0:01:08]} Rb8 {[%emt 0:00:59]} 27. Ne5 {[%emt 0:01:19]} Bd7 {[%emt 0:00:45]} 28. Qc5 {[%emt 0:00:24]} Rbe8 {[%emt 0:03:10]} 29. Nc4 {[%emt 0:01:29]} Bc8 {[%emt 0:00:52]} 30. Nd6 {[%emt 0:00:59]} Nd7 {[%emt 0:07:20]} 31. Nxc8 {[%emt 0:00:17]} Qd8 {[%emt 0:00:03]} 32. Qd6 {[%emt 0:01:56]} Qxc8 {[%emt 0:00:05]} 33. d5 {[%emt 0:00:58]} Nb8 {[%emt 0:02:00]} 34. Bh3 {[%emt 0:03:46]} cxd5 {[%emt 0:01:40]} 35. exd5 {[%emt 0:00:23]} Qc4 {[%emt 0:00:11]} 36. dxe6 fxe6 {[%emt 0:00:07]} 37. Rbc1 {[%emt 0:02:33]} Qe2 {[%emt 0:00:39]} 38. Rd2 {[%emt 0:00:34]} Qe4 {[%emt 0:00:56]} 39. Bg2 {[%emt 0:00:39]} Qf5 {[%emt 0:00:57]} 40. Bxb7 {[%emt 0:00:29]} Qf6 {[%emt 0:00:20]} 41. Qb6 {[%emt 0:31:59]} Qg5 {[%emt 0:31:47]} 42. Rcd1 {[%emt 0:00:00]} Qg4 {[%emt 0:00:00]} 43. b5 axb5 {[%emt 0:00:00]} 44. Qxb5 {[%emt 0:00:00]} 1-0

[Event "FIDE WSTC Open 65 2025"]
[Site "Prague"]
[Date "2025.02.17"]
[Round "1.38"]
[White "Goldmane, Astra"]
[Black "Renman, Nils-Gustaf"]
[Result "1/2-1/2"]
[Annotator "ChessBase"]
[ECO "C07"]
[WhiteElo "1969"]
[BlackElo "2306"]
[PlyCount "110"]
[EventDate "2025.02.17"]
[EventType "team-tourn"]
[EventCountry "CZE"]
[SourceTitle "playchess.com"]
[Source "ChessBase"]
[SourceQuality "1"]
[TimeControl "40/5400+30:1800+30"]

1. e4 {[%emt 0:00:05]} e6 {[%emt 0:00:06]} 2. d4 {[%emt 0:00:11]} d5 {[%emt 0:00:03]} 3. Nd2 {[%emt 0:00:06]} Nf6 {[%emt 0:00:13]} 4. e5 {[%emt 0:00:06]} Nfd7 {[%emt 0:00:03]} 5. Ngf3 {[%emt 0:01:19]} c5 {[%emt 0:00:08]} 6. dxc5 {[%emt 0:02:35]} Nc6 {[%emt 0:01:14]} 7. Bb5 {[%emt 0:01:40]} Bxc5 {[%emt 0:00:29]} 8. Nb3 {[%emt 0:03:28]} Be7 {[%emt 0:17:01]} 9. Bf4 {[%emt 0:11:40]} a6 {[%emt 0:01:41]} 10. Bd3 {[%emt 0:13:51]} g5 {[%emt 0:01:22]} 11. Bg3 {[%emt 0:00:00]} g4 {[%emt 0:00:29]} 12. Nfd4 {[%emt 0:02:24]} Ndxe5 {[%emt 0:06:29]} 13. h3 {[%emt 0:08:25]} gxh3 {[%emt 0:19:41]} 14. Rxh3 {[%emt 0:01:31]} Nxd3+ {[%emt 0:02:10]} 15. Qxd3 {[%emt 0:00:50]} Bf6 {[%emt 0:14:35]} 16. Nxc6 {[%emt 0:23:57]} bxc6 {[%emt 0:00:05]} 17. O-O-O {[%emt 0:00:04]} h6 {[%emt 0:10:46]} 18. Re1 {[%emt 0:02:58]} a5 {[%emt 0:01:01]} 19. Be5 {[%emt 0:05:19]} a4 {[%emt 0:06:51]} 20. Nc5 {[%emt 0:04:43]} Bxe5 {[%emt 0:03:58]} 21. Rxe5 {[%emt 0:00:01]} Qf6 {[%emt 0:06:24]} 22. Qd4 {[%emt 0:00:36]} Rf8 {[%emt 0:02:33]} 23. Rxd5 {[%emt 0:06:00]} Qxd4 {[%emt 0:00:20]} 24. Rxd4 {[%emt 0:00:01]} Rg8 {[%emt 0:01:48]} 25. Rxh6 {[%emt 0:02:11]} Rxg2 {[%emt 0:00:42]} 26. Rh8+ {[%emt 0:00:19]} Ke7 {[%emt 0:00:01]} 27. Rdd8 {[%emt 0:00:09]} Ra5 {[%emt 0:00:31]} 28. Ne4 {[%emt 0:00:27]} Bd7 {[%emt 0:01:39]} 29. Ra8 {[%emt 0:07:00]} Rd5 {[%emt 0:01:14]} 30. Rag8 {[%emt 0:00:23]} Rxg8 {[%emt 0:00:34]} 31. Rxg8 {[%emt 0:00:01]} c5 {[%emt 0:01:09]} 32. Ra8 {[%emt 0:00:13]} f5 {[%emt 0:00:20]} 33. Nc3 {[%emt 0:00:03]} Rd4 {[%emt 0:00:11]} 34. Ra7 {[%emt 0:00:18]} Rf4 {[%emt 0:00:11]} 35. Nd1 {[%emt 0:00:42]} Kd6 {[%emt 0:00:05]} 36. Kd2 {[%emt 0:00:05]} Bc6 {[%emt 0:00:12]} 37. Ra6 {[%emt 0:00:35]} Kc7 {[%emt 0:00:19]} 38. Ra7+ {[%emt 0:00:25]} Kb6 {[%emt 0:00:28]} 39. Re7 {[%emt 0:00:19]} Bd5 {[%emt 0:00:57]} 40. a3 {[%emt 0:00:17]} Kc6 {[%emt 0:00:20]} 41. Ra7 {[%emt 0:32:52]} Rd4+ {[%emt 0:31:09]} 42. Kc1 {[%emt 0:00:32]} Kb6 {[%emt 0:00:00]} 43. Rh7 {[%emt 0:00:00]} Kc6 {[%emt 0:00:00]} 44. Nc3 {[%emt 0:00:00]} Rf4 {[%emt 0:00:00]} 45. Rh2 {[%emt 0:00:00]} Kd6 {[%emt 0:00:00]} 46. Nxd5 Kxd5 {[%emt 0:00:00]} 47. Kd2 {[%emt 0:00:00]} Rd4+ {[%emt 0:00:00]} 48. Ke2 {[%emt 0:00:00]} Re4+ {[%emt 0:00:00]} 49. Kd2 {[%emt 0:00:00]} f4 {[%emt 0:00:05]} 50. Rh3 {[%emt 0:00:00]} c4 {[%emt 0:00:00]} 51. b3 {[%emt 0:00:00]} axb3 {[%emt 0:01:19]} 52. cxb3 {[%emt 0:00:00]} cxb3 {[%emt 0:01:26]} 53. Rxb3 {[%emt 0:00:00]} Ra4 {[%emt 0:00:20]} 54. f3 {[%emt 0:00:00]} Rb4 55. a4 Rxa4 1/2-1/2

[Event "FIDE WSTC Open 65 2025"]
[Site "Prague"]
[Date "2025.02.17"]
[Round "1.39"]
[White "Wahlbom, Magnus"]
[Black "Ungure, Liga"]
[Result "1-0"]
[Annotator "ChessBase"]
[ECO "B66"]
[WhiteElo "2109"]
[BlackElo "1960"]
[PlyCount "61"]
[EventDate "2025.02.17"]
[EventType "team-tourn"]
[EventCountry "CZE"]
[SourceTitle "playchess.com"]
[Source "ChessBase"]
[SourceQuality "1"]
[TimeControl "40/5400+30:1800+30"]

1. e4 {[%emt 0:00:06]} c5 {[%emt 0:00:06]} 2. Nf3 {[%emt 0:00:10]} d6 {[%emt 0:00:03]} 3. d4 {[%emt 0:00:10]} cxd4 {[%emt 0:00:04]} 4. Nxd4 {[%emt 0:00:08]} Nf6 {[%emt 0:00:01]} 5. Nc3 {[%emt 0:00:13]} Nc6 {[%emt 0:00:05]} 6. Bg5 {[%emt 0:00:55]} Bd7 {[%emt 0:00:06]} 7. Qd2 {[%emt 0:01:39]} a6 {[%emt 0:00:18]} 8. Be2 {[%emt 0:01:30]} e6 {[%emt 0:02:50]} 9. O-O {[%emt 0:04:33]} Be7 {[%emt 0:04:12]} 10. Kh1 {[%emt 0:04:50]} Nxd4 {[%emt 0:09:05]} 11. Qxd4 {[%emt 0:00:13]} Qa5 {[%emt 0:00:25]} 12. f4 {[%emt 0:05:46]} h6 {[%emt 0:02:51]} 13. Bh4 {[%emt 0:01:37]} Bc6 {[%emt 0:05:07]} 14. Bg3 {[%emt 0:15:35]} Rd8 {[%emt 0:05:24]} 15. b4 {[%emt 0:13:26]} Qc7 {[%emt 0:05:22]} 16. a4 {[%emt 0:04:17]} O-O {[%emt 0:07:50]} 17. b5 {[%emt 0:03:34]} axb5 {[%emt 0:02:22]} 18. axb5 {[%emt 0:00:14]} Bd7 {[%emt 0:01:36]} 19. e5 {[%emt 0:08:38]} dxe5 {[%emt 0:06:00]} 20. fxe5 {[%emt 0:00:08]} Ne8 {[%emt 0:07:34]} 21. Bd3 {[%emt 0:03:46]} Qc5 {[%emt 0:04:29]} 22. Qe4 {[%emt 0:06:13]} f5 {[%emt 0:01:16]} 23. exf6 {[%emt 0:00:24]} Nxf6 {[%emt 0:00:34]} 24. Rxf6 {[%emt 0:00:39]} Rxf6 {[%emt 0:03:22]} 25. Qh7+ {[%emt 0:03:13]} Kf7 {[%emt 0:04:12]} 26. Ne4 {[%emt 0:00:22]} Qd4 {[%emt 0:04:36]} 27. c3 {[%emt 0:00:16]} Qd5 {[%emt 0:00:28]} 28. Nxf6 {[%emt 0:00:38]} Bxf6 {[%emt 0:01:39]} 29. Rf1 {[%emt 0:02:02]} Qg5 30. Qe4 {[%emt 0:00:30]} Bc8 31. Bh4 {[%emt 0:00:30]} 1-0

[Event "FIDE WSTC Open 65 2025"]
[Site "Prague"]
[Date "2025.02.17"]
[Round "1.40"]
[White "Rozlapa, Vija"]
[Black "Malmdin, Nils-Ake"]
[Result "1/2-1/2"]
[Annotator "NA"]
[ECO "B35"]
[WhiteElo "1915"]
[BlackElo "2094"]
[PlyCount "42"]
[EventDate "2025.02.17"]
[EventType "team-tourn"]
[EventCountry "CZE"]
[SourceTitle "playchess.com"]
[Source "ChessBase"]
[SourceQuality "1"]
[TimeControl "40/5400+30:1800+30"]

1. e4 {[%emt 0:00:02]} c5 {[%emt 0:00:41]} 2. Nf3 {[%emt 0:00:14]} Nc6 {[%emt 0:00:41]} 3. d4 {[%emt 0:00:29]} cxd4 {[%emt 0:00:15]} 4. Nxd4 {[%emt 0:00:29]} g6 {[%emt 0:00:32]} 5. Nc3 {[%emt 0:00:21]} Bg7 {[%emt 0:00:13]} 6. Be3 {[%emt 0:00:32]} Nf6 {[%emt 0:00:34]} 7. Bc4 {[%emt 0:01:14]} O-O {[%emt 0:00:46]} 8. f3 {[%emt 0:04:57]} Re8 {[%emt 0:08:48]} 9. Qd2 {[%emt 0:01:01]} e6 {[%emt 0:09:24]} 10. O-O-O {[%emt 0:13:28]} d5 {[%emt 0:20:06]} 11. Bb5 {[%emt 0:05:35]} Bd7 {[%emt 0:01:02]} 12. Bxc6 {[%emt 0:11:31]} Bxc6 {[%emt 0:00:28]} 13. e5 {[%emt 0:04:03]} Nd7 {[%emt 0:01:04]} 14. f4 {[%emt 0:00:33]} Nb6 {[%emt 0:02:14]} 15. b3 {[%emt 0:06:05]} Bf8 {[%emt 0:05:33]} 16. Kb2 {[%emt 0:01:23]} a5 {[%emt 0:08:17]} 17. Qf2 {[%emt 0:06:20]} Nd7 {[%emt 0:08:33]} 18. a4 {[%emt 0:03:10]} Rc8 {[%emt 0:05:09]} 19. h4 {[%emt 0:04:08]} Qe7 {[%emt 0:10:31]} 20. Nb1 {[%emt 0:06:29]} Nc5 {[%emt 0:01:34]} 21. h5 {[%emt 0:04:24]} Ne4 {[%emt 0:07:47]} 1/2-1/2

[Event "FIDE WSTC Open 65 2025"]
[Site "Prague"]
[Date "2025.02.17"]
[Round "1.41"]
[White "Ortoft, Kai"]
[Black "Birnboim, Nathan"]
[Result "0-1"]
[Annotator "ChessBase"]
[ECO "A48"]
[WhiteElo "1985"]
[BlackElo "2313"]
[PlyCount "80"]
[EventDate "2025.02.17"]
[EventType "team-tourn"]
[EventCountry "CZE"]
[SourceTitle "playchess.com"]
[Source "ChessBase"]
[SourceQuality "1"]
[TimeControl "40/5400+30:1800+30"]

1. d4 {[%emt 0:00:02]} Nf6 {[%emt 0:00:04]} 2. Nf3 {[%emt 0:00:14]} g6 {[%emt 0:00:16]} 3. Bf4 {[%emt 0:00:49]} Bg7 {[%emt 0:00:58]} 4. e3 {[%emt 0:00:28]} d6 {[%emt 0:01:55]} 5. h3 {[%emt 0:00:42]} Nbd7 {[%emt 0:01:16]} 6. Bc4 {[%emt 0:03:58]} O-O {[%emt 0:13:17]} 7. O-O {[%emt 0:01:31]} a6 {[%emt 0:01:27]} 8. a4 {[%emt 0:01:27]} b6 {[%emt 0:00:37]} 9. Nbd2 {[%emt 0:02:12]} Bb7 {[%emt 0:00:21]} 10. c3 {[%emt 0:00:49]} Qe8 {[%emt 0:01:14]} 11. Bh2 {[%emt 0:04:03]} e5 {[%emt 0:02:41]} 12. Qe2 {[%emt 0:06:30]} Qe7 {[%emt 0:07:04]} 13. b4 {[%emt 0:08:43]} Ne8 {[%emt 0:06:59]} 14. b5 {[%emt 0:03:23]} a5 {[%emt 0:00:22]} 15. Ne1 {[%emt 0:04:17]} Kh8 {[%emt 0:02:20]} 16. f4 {[%emt 0:03:25]} f5 {[%emt 0:02:06]} 17. Nef3 {[%emt 0:01:51]} exd4 {[%emt 0:09:18]} 18. exd4 {[%emt 0:00:49]} Qxe2 {[%emt 0:00:16]} 19. Bxe2 {[%emt 0:00:13]} Nef6 {[%emt 0:00:29]} 20. Bc4 {[%emt 0:03:54]} Rae8 {[%emt 0:01:36]} 21. Rae1 {[%emt 0:01:27]} Nd5 {[%emt 0:13:05]} 22. Bxd5 {[%emt 0:02:16]} Bxd5 {[%emt 0:00:12]} 23. Rxe8 {[%emt 0:00:30]} Rxe8 {[%emt 0:00:15]} 24. Re1 {[%emt 0:02:01]} Rxe1+ {[%emt 0:02:36]} 25. Nxe1 {[%emt 0:00:00]} Nf6 {[%emt 0:02:11]} 26. Kf2 {[%emt 0:00:36]} Ne4+ {[%emt 0:00:36]} 27. Nxe4 {[%emt 0:00:30]} Bxe4 {[%emt 0:00:13]} 28. g3 {[%emt 0:03:30]} Kg8 {[%emt 0:02:33]} 29. Ke3 {[%emt 0:01:09]} Kf7 {[%emt 0:00:41]} 30. Nd3 {[%emt 0:01:27]} h5 {[%emt 0:01:09]} 31. h4 {[%emt 0:00:19]} Bd5 {[%emt 0:01:12]} 32. Bg1 {[%emt 0:00:46]} Bb3 {[%emt 0:00:44]} 33. Nb2 {[%emt 0:00:07]} Ke6 {[%emt 0:03:31]} 34. c4 {[%emt 0:05:17]} d5 {[%emt 0:01:26]} 35. cxd5+ {[%emt 0:01:51]} Kxd5 {[%emt 0:00:29]} 36. Kd3 {[%emt 0:00:05]} Ba2 {[%emt 0:01:01]} 37. Kc3 {[%emt 0:05:38]} Ke4 {[%emt 0:01:16]} 38. Nc4 {[%emt 0:05:41]} Kf3 {[%emt 0:00:56]} 39. Ne5+ {[%emt 0:00:32]} Bxe5 {[%emt 0:00:36]} 40. fxe5 {[%emt 0:01:26]} Kxg3 {[%emt 0:00:08]} 0-1